bitfinex/quotes_BTCUSD_20230118
["timestamp","ask_amount","ask_price","bid_price","bid_amount"]
[1674070281112,0.304363,20957.0,20956.0,0.48475822]
[1674070281363,0.304363,20957.0,20956.0,0.49073067]
[1674070281364,0.05,20957.0,20956.0,0.49073067]
[1674070281619,0.05,20957.0,20956.0,0.79073067]
[1674070281892,0.045,20957.0,20956.0,0.31354067]
[1674070282154,0.045,20957.0,20956.0,0.79073067]
[1674070282673,0.045,20957.0,20956.0,1.27642067]
[1674070284364,0.04506,20957.0,20956.0,1.27642067]
[1674070285896,0.04506,20957.0,20956.0,1.39055011]
[1674070287655,0.04506,20957.0,20956.0,1.56174327]
[1674070287919,0.04506,20957.0,20956.0,1.39055011]
[1674070288433,0.04506,20957.0,20956.0,1.56174327]
[1674070288696,0.04506,20957.0,20956.0,1.76492459]
[1674070288959,0.04506,20957.0,20956.0,1.56174327]
[1674070289227,0.04506,20957.0,20956.0,2.53945371]
[1674070289478,0.04506,20957.0,20956.0,2.27543045]
[1674070289729,0.04506,20957.0,20956.0,2.5036409]
[1674070290012,6e-05,20957.0,20956.0,2.27143045]
[1674070290266,0.00406,20957.0,20956.0,2.32243045]
[1674070290552,0.004,20957.0,20956.0,2.32243045]
[1674070290784,0.004,20957.0,20956.0,2.03714841]
[1674070291087,0.004,20957.0,20956.0,2.18714841]
[1674070291797,0.004,20957.0,20956.0,2.47247505]
[1674070292052,0.004,20957.0,20956.0,2.17964287]
[1674070292305,0.00110248,20957.0,20956.0,3.37993992]
[1674070292573,2.48e-06,20957.0,20956.0,3.37993992]
[1674070292832,6e-05,20960.0,20957.0,5.752e-05]
[1674070293103,6e-05,20960.0,20959.0,0.23856]
[1674070293358,6e-05,20960.0,20959.0,1.90499865]
[1674070293608,6e-05,20960.0,20959.0,2.56874085]
[1674070293861,6e-05,20960.0,20959.0,2.25677951]
[1674070294114,6e-05,20960.0,20959.0,3.72147002]
[1674070294369,6e-05,20960.0,20959.0,3.37907095]
[1674070294614,0.00738687,20963.0,20959.0,4.26364685]
[1674070294865,0.00738687,20963.0,20962.0,0.28523012]
[1674070295130,0.00738687,20963.0,20962.0,3.70823677]
[1674070295390,0.00738687,20963.0,20962.0,3.9448021]
[1674070295668,0.00738687,20963.0,20962.0,3.71330751]
[1674070295903,0.00738687,20963.0,20962.0,3.9952159]
[1674070296201,0.00738687,20963.0,20962.0,3.76715092]
[1674070296424,0.00738687,20963.0,20962.0,4.06212288]
[1674070296687,0.00738687,20963.0,20962.0,3.94802379]
[1674070297202,0.00738687,20963.0,20962.0,3.90474293]
[1674070297459,0.00738687,20963.0,20962.0,3.28170861]
[1674070298258,0.00248338,20963.0,20962.0,2.77908007]
[1674070298515,0.00248338,20963.0,20962.0,2.79311048]
[1674070298842,0.00248338,20963.0,20962.0,2.57590727]
[1674070299022,0.00248338,20963.0,20962.0,2.79310946]
[1674070299281,0.00248338,20963.0,20962.0,3.07122508]
[1674070299546,0.00248338,20963.0,20962.0,2.72538221]
[1674070299805,0.00248338,20963.0,20962.0,9.94856059]
[1674070300330,0.00248338,20963.0,20962.0,9.5346603]
[1674070300855,0.00248338,20963.0,20962.0,2.0346603]
[1674070301574,0.00248338,20963.0,20962.0,2.3346603]
[1674070301833,0.00248338,20963.0,20962.0,2.44856059]
[1674070302335,0.00248338,20963.0,20962.0,2.72595021]
[1674070302587,0.00248338,20963.0,20962.0,2.61948672]
[1674070302837,0.00248338,20963.0,20962.0,2.44850459]
[1674070303090,0.00248338,20963.0,20962.0,2.84172924]
[1674070303344,0.0005134,20963.0,20962.0,3.48027571]
[1674070303600,0.0005134,20963.0,20962.0,2.9560785]
[1674070303825,0.0005134,20963.0,20962.0,2.72810654]
[1674070304330,0.0005134,20963.0,20962.0,2.8419063]
[1674070304601,0.0005134,20963.0,20962.0,2.84197089]
[1674070304861,0.0005134,20963.0,20962.0,10.34197089]
[1674070305160,0.0005134,20963.0,20962.0,10.11972837]
[1674070305385,0.00988967,20964.0,20963.0,0.15]
[1674070305639,0.00988967,20964.0,20963.0,0.4585]
[1674070305906,0.00988967,20964.0,20963.0,1.91516]
[1674070306675,0.00988967,20964.0,20963.0,2.02895976]
[1674070306938,0.00988967,20964.0,20963.0,2.19994189]
[1674070307232,9.67e-06,20964.0,20963.0,2.5910755]
[1674070307494,9.67e-06,20964.0,20963.0,3.09438466]
[1674070307767,9.67e-06,20964.0,20963.0,10.42358831]
[1674070308025,9.67e-06,20964.0,20963.0,9.86270325]
[1674070308289,9.67e-06,20964.0,20963.0,9.57856762]
[1674070308576,9.67e-06,20964.0,20963.0,9.01484235]
[1674070309081,9.67e-06,20964.0,20963.0,9.10784235]
[1674070309329,9.67e-06,20964.0,20963.0,9.06456149]
[1674070309590,9.67e-06,20964.0,20963.0,0.95406]
[1674070310616,9.67e-06,20964.0,20963.0,1.04706]
[1674070310870,9.67e-06,20964.0,20963.0,0.95406]
[1674070311140,9.67e-06,20964.0,20963.0,1.04706]
[1674070311390,9.67e-06,20964.0,20963.0,0.95406]
[1674070311736,9.67e-06,20964.0,20963.0,8.85556]
[1674070312184,9.67e-06,20964.0,20963.0,8.94856]
[1674070312450,9.67e-06,20964.0,20963.0,8.76256]
[1674070312716,9.67e-06,20964.0,20963.0,1.30584086]
[1674070312970,9.67e-06,20964.0,20963.0,1.00584086]
[1674070313218,9.67e-06,20964.0,20963.0,8.80584086]
[1674070313994,9.67e-06,20964.0,20963.0,8.89884086]
[1674070314246,9.67e-06,20964.0,20963.0,1.30584086]
[1674070314500,9.67e-06,20964.0,20963.0,1.39884086]
[1674070314999,9.67e-06,20964.0,20963.0,1.30584086]
[1674070315253,9.67e-06,20964.0,20963.0,1.39884086]
[1674070315521,9.67e-06,20964.0,20963.0,1.30584086]
[1674070315778,9.67e-06,20964.0,20963.0,2.01516613]
[1674070316040,9.67e-06,20964.0,20963.0,1.90144086]
[1674070316307,9.67e-06,20964.0,20963.0,2.01516613]
[1674070316796,9.67e-06,20964.0,20963.0,2.42739282]
[1674070317043,9.67e-06,20964.0,20963.0,2.18574797]
[1674070317261,9.67e-06,20964.0,20963.0,2.34051712]
[1674070317535,9.67e-06,20964.0,20963.0,2.43351712]
[1674070317797,9.67e-06,20964.0,20963.0,2.22670963]
[1674070318053,9.67e-06,20964.0,20963.0,2.43351726]
[1674070318307,0.01324959,20966.0,20965.0,0.12575033]
[1674070318560,0.01324959,20966.0,20965.0,1.57133046]
[1674070318817,0.01324959,20966.0,20965.0,2.02133046]
[1674070319318,0.01324959,20966.0,20965.0,1.87133046]
[1674070320365,0.01324959,20966.0,20965.0,1.96433046]
[1674070320630,0.01324959,20966.0,20965.0,2.22813809]
[1674070320887,0.01324959,20966.0,20965.0,2.57161318]
[1674070321136,0.01324959,20966.0,20965.0,2.70658514]
[1674070321391,0.01324959,20966.0,20965.0,3.28918392]
[1674070321663,0.01324959,20966.0,20965.0,2.47861318]
[1674070321980,0.01324959,20966.0,20965.0,1.69744705]
[1674070322168,0.01324959,20966.0,20965.0,1.05483018]
[1674070322720,0.01324959,20966.0,20965.0,8.46183018]
[1674070322952,0.01324959,20966.0,20965.0,8.57568119]
[1674070323472,0.01324959,20966.0,20965.0,9.14776303]
[1674070323727,0.01324959,20966.0,20965.0,8.97718119]
[1674070324269,0.01324959,20966.0,20965.0,9.3904314]
[1674070324562,0.01324959,20966.0,20965.0,9.14776303]
[1674070324780,0.01324959,20966.0,20965.0,1.64776303]
[1674070324999,0.01324959,20966.0,20965.0,1.79776303]
[1674070325267,0.01324959,20966.0,20965.0,9.5405072]
[1674070325540,0.01324959,20966.0,20965.0,9.20462815]
[1674070325796,0.01324959,20966.0,20965.0,8.56333018]
[1674070326299,0.01324959,20966.0,20965.0,1.17727379]
[1674070326571,0.01324959,20966.0,20965.0,1.32727379]
[1674070326802,0.01324959,20966.0,20965.0,9.12727379]
[1674070327338,0.01324959,20966.0,20965.0,9.54123331]
[1674070327860,0.01324959,20966.0,20965.0,2.04123331]
[1674070328087,0.01324959,20966.0,20965.0,2.64915498]
[1674070328335,0.01324959,20966.0,20965.0,2.76365436]
[1674070328589,0.14038959,20966.0,20965.0,1.81997898]
[1674070328840,0.14038959,20966.0,20965.0,1.17745273]
[1674070329091,0.14038959,20966.0,20965.0,1.16895273]
[1674070329351,0.01324959,20966.0,20965.0,1.16895273]
[1674070329620,0.01324959,20966.0,20965.0,1.58367135]
[1674070330137,0.01324959,20966.0,20965.0,1.34012934]
[1674070330409,0.01324959,20966.0,20965.0,1.58260484]
[1674070330648,0.01324959,20966.0,20965.0,2.08581153]
[1674070330893,0.01324959,20966.0,20965.0,2.08578402]
[1674070331115,0.01324959,20966.0,20965.0,1.97166147]
[1674070331370,0.01324959,20966.0,20965.0,2.32845682]
[1674070331647,0.01324959,20966.0,20965.0,2.37173768]
[1674070331895,0.01324959,20966.0,20965.0,2.14376572]
[1674070332408,0.01324959,20966.0,20965.0,2.48604187]
[1674070332651,0.01324959,20966.0,20965.0,2.14376572]
[1674070333405,0.01324959,20966.0,20965.0,2.48604187]
[1674070333663,0.01324959,20966.0,20965.0,2.05076572]
[1674070333910,0.01324959,20966.0,20965.0,2.14376572]
[1674070334398,0.01324959,20966.0,20965.0,2.48604187]
[1674070334643,0.01324959,20966.0,20965.0,2.47823202]
[1674070334902,0.00170794,20966.0,20965.0,2.04955331]
[1674070335155,0.00170794,20966.0,20965.0,2.09952932]
[1674070335436,0.00170794,20966.0,20965.0,2.04981018]
[1674070335673,0.00170794,20966.0,20965.0,2.48550567]
[1674070335918,0.00170794,20966.0,20965.0,2.39250567]
[1674070336187,0.00170794,20966.0,20965.0,2.48550567]
[1674070336460,0.00170794,20966.0,20965.0,2.14281018]
[1674070338436,0.00035174,20966.0,20965.0,2.14281018]
[1674070339687,0.00035174,20966.0,20965.0,2.48550567]
[1674070339938,0.00035174,20966.0,20965.0,9.64281018]
[1674070340197,0.00035174,20966.0,20965.0,9.99577761]
[1674070340476,0.00035174,20966.0,20965.0,10.3384731]
[1674070340995,0.00035174,20966.0,20965.0,2.8384731]
[1674070341253,0.00035174,20966.0,20965.0,2.48550567]
[1674070341514,0.00035174,20966.0,20965.0,9.98550567]
[1674070341797,0.00035174,20966.0,20965.0,10.3384731]
[1674070342023,0.00035174,20966.0,20965.0,12.03169781]
[1674070342024,1.74e-06,20966.0,20965.0,12.03169781]
[1674070342548,1.74e-06,20966.0,20965.0,4.53764806]
[1674070342806,1.74e-06,20966.0,20965.0,3.49865433]
[1674070343062,1.74e-06,20966.0,20965.0,10.14561226]
[1674070343315,1.74e-06,20966.0,20965.0,11.53162317]
[1674070343568,1.74e-06,20966.0,20965.0,12.0387542]
[1674070343821,1.74e-06,20966.0,20965.0,11.53162317]
[1674070344606,0.07324959,20970.0,20966.0,5.826e-05]
[1674070344855,0.07324959,20970.0,20969.0,0.28556959]
[1674070345118,0.07324959,20970.0,20969.0,0.58556959]
[1674070345387,0.07324959,20970.0,20969.0,2.76190627]
[1674070345908,0.07324959,20970.0,20969.0,2.990304]
[1674070346436,0.07324959,20970.0,20969.0,3.083304]
[1674070346692,0.07324959,20970.0,20969.0,2.85490627]
[1674070346961,0.07324959,20970.0,20969.0,3.08330593]
[1674070347209,0.07324959,20970.0,20969.0,2.99030593]
[1674070347462,0.07324959,20970.0,20969.0,3.08959683]
[1674070348172,0.06834959,20970.0,20969.0,3.08959683]
[1674070348424,0.06834959,20970.0,20969.0,2.97528833]
[1674070348688,0.06834959,20970.0,20969.0,3.08959683]
[1674070348930,0.06834959,20970.0,20969.0,2.80402724]
[1674070349184,0.06834959,20970.0,20969.0,2.97527463]
[1674070349434,0.06834959,20970.0,20969.0,3.08959683]
[1674070349691,0.06834959,20970.0,20969.0,2.80402724]
[1674070349937,0.06834959,20970.0,20969.0,3.08959683]
[1674070350204,0.06834959,20970.0,20969.0,2.86119717]
[1674070350989,0.06834959,20970.0,20969.0,3.08951175]
[1674070351241,0.06834959,20970.0,20969.0,2.86119717]
[1674070351499,0.06834959,20970.0,20969.0,2.61957651]
[1674070351753,0.06834959,20970.0,20969.0,2.62130822]
[1674070352587,0.06834959,20970.0,20969.0,2.52830822]
[1674070352776,0.06834959,20970.0,20969.0,2.90600588]
[1674070353027,0.06834959,20970.0,20969.0,2.49667506]
[1674070353289,0.06834959,20970.0,20969.0,2.66785046]
[1674070353780,0.06834959,20970.0,20969.0,2.57485353]
[1674070354031,0.06834959,20970.0,20969.0,2.66685353]
[1674070354273,0.06834959,20970.0,20969.0,2.57485353]
[1674070354521,0.06834959,20970.0,20969.0,2.96785353]
[1674070354772,0.06834959,20970.0,20969.0,2.87485353]
[1674070355022,0.06834959,20970.0,20969.0,2.49095953]
[1674070355288,0.06834959,20970.0,20969.0,2.39795953]
[1674070355546,0.06834959,20970.0,20969.0,2.07686521]
[1674070355788,0.06834959,20970.0,20969.0,1.98386521]
[1674070356036,0.06834959,20970.0,20969.0,2.46075921]
[1674070356286,0.06834959,20970.0,20969.0,1.07553206]
[1674070356786,0.06834959,20970.0,20969.0,1.16853206]
[1674070357037,0.06834959,20970.0,20969.0,1.07553206]
[1674070357303,0.06834959,20970.0,20969.0,1.16092353]
[1674070357572,0.06834959,20970.0,20968.0,0.39940832]
[1674070357573,0.62062034,20970.0,20968.0,0.04378564]
[1674070357833,0.29991534,20970.0,20969.0,0.093]
[1674070358108,0.64279434,20970.0,20969.0,0.093]
[1674070358372,0.41122859,20970.0,20969.0,0.078]
[1674070358620,0.41122859,20970.0,20967.0,0.762244]
[1674070358890,0.344249,20969.0,20967.0,0.59106553]
[1674070359150,0.344249,20969.0,20967.0,0.11413553]
[1674070359434,0.344249,20969.0,20966.0,0.12198488]
[1674070359695,0.326928,20968.0,20966.0,0.12198488]
[1674070359960,0.344163,20967.0,20966.0,0.12198488]
[1674070360254,0.344163,20967.0,20966.0,0.11419379]
[1674070360744,0.329612,20968.0,20966.0,0.11419379]
[1674070360996,0.333063,20967.0,20966.0,0.19219379]
[1674070361231,0.333063,20967.0,20966.0,0.11419379]
[1674070361518,0.334063,20967.0,20966.0,0.19219379]
[1674070362257,0.334063,20967.0,20966.0,0.07805826]
[1674070362506,0.810002,20967.0,20966.0,5.826e-05]
[1674070362822,0.810002,20967.0,20966.0,0.07805826]
[1674070362823,1.286941,20967.0,20966.0,0.07805826]
[1674070363010,1.286941,20967.0,20966.0,5.826e-05]
[1674070363274,1.287941,20967.0,20966.0,0.07805826]
[1674070363523,1.436941,20967.0,20966.0,5.826e-05]
[1674070363776,1.287941,20967.0,20966.0,0.07805826]
[1674070364031,1.286941,20967.0,20966.0,5.826e-05]
[1674070364279,1.76514269,20967.0,20966.0,0.07705826]
[1674070364501,1.76414269,20967.0,20966.0,5.826e-05]
[1674070365013,1.91414269,20967.0,20966.0,5.826e-05]
[1674070365527,1.91414269,20967.0,20966.0,0.00605826]
[1674070365528,2.29925025,20967.0,20966.0,0.00605826]
[1674070365784,1.77814269,20967.0,20966.0,0.00605826]
[1674070366287,1.76414269,20967.0,20966.0,5.826e-05]
[1674070366538,1.92814269,20967.0,20966.0,0.00705826]
[1674070367333,2.28665025,20967.0,20966.0,5.826e-05]
[1674070367590,2.30065025,20967.0,20966.0,0.00705826]
[1674070368087,1.77814269,20967.0,20966.0,0.00705826]
[1674070368355,1.92814269,20967.0,20966.0,0.00705826]
[1674070368861,1.98296367,20967.0,20966.0,0.00705826]
[1674070369192,2.13296367,20967.0,20966.0,0.00705826]
[1674070369387,1.98296367,20967.0,20966.0,0.00705826]
[1674070369899,2.13296367,20967.0,20966.0,0.00705826]
[1674070370149,2.48664504,20967.0,20966.0,0.00705826]
[1674070370404,2.48664504,20967.0,20966.0,0.00697991]
[1674070371975,2.33664504,20967.0,20966.0,0.00697991]
[1674070372233,1.98296367,20967.0,20966.0,0.00697991]
[1674070374019,1.77814269,20967.0,20966.0,0.00697991]
[1674070374285,2.64860965,20967.0,20966.0,0.00697991]
[1674070374537,2.79262779,20967.0,20966.0,0.00697991]
[1674070374787,3.28372998,20967.0,20966.0,9.91e-06]
[1674070375036,3.36357602,20967.0,20966.0,9.91e-06]
[1674070375291,0.2647855,20966.0,20965.0,5.033e-05]
[1674070375550,2.24164752,20966.0,20965.0,5.033e-05]
[1674070375808,2.05970869,20966.0,20965.0,5.033e-05]
[1674070376821,2.07370869,20966.0,20965.0,0.00705033]
[1674070377080,2.05970869,20966.0,20965.0,5.033e-05]
[1674070377326,2.25631088,20966.0,20965.0,0.00705033]
[1674070377867,2.04146416,20966.0,20965.0,0.00705033]
[1674070378887,2.04146416,20966.0,20965.0,0.00705033]
[1674070380189,2.01896416,20966.0,20965.0,5.033e-05]
[1674070380426,2.11596416,20966.0,20965.0,5.033e-05]
[1674070381456,2.01896416,20966.0,20965.0,5.033e-05]
[1674070382006,2.11096416,20966.0,20965.0,5.033e-05]
[1674070386997,0.412083,20966.0,20965.0,0.32623115]
[1674070387256,0.092,20966.0,20965.0,0.00621018]
[1674070387797,0.476933,20968.0,20965.0,0.00621018]
[1674070388064,0.95413469,20968.0,20965.0,0.20053115]
[1674070388312,0.01,20966.0,20965.0,0.00621018]
[1674070388648,0.328574,20966.0,20965.0,0.00621018]
[1674070388900,0.318574,20966.0,20963.0,1.01050605]
[1674070389164,0.332705,20965.0,20963.0,1.08780605]
[1674070389424,1.20378752,20968.0,20963.0,0.61079605]
[1674070389684,1.20378752,20968.0,20963.0,0.75521662]
[1674070389956,0.331089,20967.0,20963.0,0.75521662]
[1674070390211,0.31168,20966.0,20963.0,0.56089565]
[1674070390468,0.328509,20965.0,20963.0,0.61086344]
[1674070390731,0.476941,20967.0,20963.0,0.61086344]
[1674070390997,0.66299295,20967.0,20963.0,0.75521662]
[1674070391286,0.476941,20967.0,20963.0,0.75521662]
[1674070391503,0.322876,20966.0,20963.0,1.03792565]
[1674070391756,0.311092,20965.0,20963.0,1.03792565]
[1674070392025,0.014,20967.0,20963.0,1.03792565]
[1674070392274,0.014,20967.0,20963.0,0.75521662]
[1674070392558,1.38359952,20968.0,20963.0,0.42820362]
[1674070392787,0.476952,20967.0,20963.0,0.42820362]
[1674070393050,0.320203,20966.0,20963.0,0.23388265]
[1674070393322,0.349247,20965.0,20963.0,0.08388265]
[1674070393570,0.349247,20965.0,20963.0,0.39288265]
[1674070393571,0.328295,20964.0,20963.0,0.39288265]
[1674070393840,1.38359952,20968.0,20963.0,0.08388265]
[1674070393841,1.86053452,20968.0,20963.0,0.08388265]
[1674070394082,1.86053452,20968.0,20963.0,0.43720362]
[1674070394083,0.323796,20967.0,20963.0,0.43720362]
[1674070394339,1.86053452,20968.0,20963.0,0.82792662]
[1674070394340,0.326525,20966.0,20963.0,0.82792662]
[1674070394590,0.319971,20965.0,20964.0,0.15]
[1674070394893,0.319971,20965.0,20964.0,1.104016]
[1674070395180,0.008,20965.0,20964.0,1.404016]
[1674070395443,0.476898,20969.0,20964.0,1.404016]
[1674070395694,0.00788124,20968.0,20965.0,0.49432097]
[1674070395984,0.00788124,20968.0,20966.0,0.953924]
[1674070396237,0.00788124,20968.0,20967.0,0.3774]
[1674070396514,0.06834959,20970.0,20967.0,1.331278]
[1674070396771,0.06834959,20970.0,20968.0,0.00751144]
[1674070397023,0.06834959,20970.0,20968.0,1.11132844]
[1674070397283,0.06834959,20970.0,20969.0,0.3]
[1674070397812,0.10434959,20970.0,20969.0,0.3]
[1674070398072,0.06834959,20970.0,20969.0,0.3]
[1674070398331,0.15034959,20970.0,20969.0,0.3]
[1674070398603,0.06834959,20970.0,20969.0,0.3]
[1674070399436,0.06834959,20970.0,20969.0,0.301]
[1674070399687,0.15034959,20970.0,20969.0,0.301]
[1674070399933,0.48025259,20970.0,20969.0,0.001]
[1674070403321,0.47525259,20970.0,20969.0,0.001]
[1674070410708,0.14534959,20970.0,20969.0,0.151]
[1674070410957,0.14534959,20970.0,20969.0,0.001]
[1674070411220,0.14534959,20970.0,20969.0,0.90936948]
[1674070411491,0.14534959,20970.0,20969.0,0.98708265]
[1674070411736,0.14534959,20970.0,20969.0,1.46397665]
[1674070412023,0.14534959,20970.0,20969.0,1.61397665]
[1674070412262,0.14534959,20970.0,20969.0,1.65963753]
[1674070412263,0.06334959,20970.0,20969.0,1.65963753]
[1674070412523,0.07034959,20970.0,20969.0,1.67804888]
[1674070412799,0.06334959,20970.0,20969.0,1.66204888]
[1674070413052,0.07034959,20970.0,20969.0,1.67804888]
[1674070413307,0.07034959,20970.0,20969.0,1.68532628]
[1674070413570,0.06334959,20970.0,20969.0,1.6226654]
[1674070413836,0.06334959,20970.0,20969.0,1.6386654]
[1674070414111,0.07034959,20970.0,20969.0,1.6386654]
[1674070415374,0.07034959,20970.0,20969.0,1.68532628]
[1674070415645,0.07034959,20970.0,20969.0,1.6386654]
[1674070416414,0.07034959,20970.0,20969.0,1.67804888]
[1674070416671,0.02065723,20970.0,20969.0,1.67804888]
[1674070416916,0.02065723,20970.0,20969.0,1.6843052]
[1674070417434,0.02065723,20970.0,20969.0,1.86958441]
[1674070417694,3.631e-05,20973.0,20969.0,3.77313215]
[1674070417969,3.631e-05,20973.0,20972.0,0.0769]
[1674070418234,3.631e-05,20973.0,20972.0,1.657378]
[1674070418501,3.631e-05,20973.0,20972.0,2.01253888]
[1674070419316,3.631e-05,20973.0,20972.0,1.86253888]
[1674070419547,3.631e-05,20973.0,20972.0,2.00442151]
[1674070419847,3.631e-05,20973.0,20972.0,2.15442151]
[1674070420071,3.631e-05,20973.0,20972.0,2.16151591]
[1674070421386,3.631e-05,20973.0,20972.0,2.11485503]
[1674070421919,3.631e-05,20973.0,20972.0,1.80776063]
[1674070422182,3.631e-05,20973.0,20972.0,1.64926063]
[1674070422699,3.631e-05,20973.0,20972.0,1.095652]
[1674070422700,0.12573631,20973.0,20972.0,1.095652]
[1674070422960,0.12573631,20973.0,20972.0,0.142]
[1674070422961,0.58286631,20973.0,20972.0,0.142]
[1674070423767,1.05966931,20973.0,20972.0,0.142]
[1674070424515,2.013674,20973.0,20972.0,0.142]
[1674070424768,2.013674,20973.0,20970.0,0.01637708]
[1674070425027,0.94809969,20972.0,20970.0,0.01637708]
[1674070425283,0.306241,20971.0,20970.0,0.01637708]
[1674070425534,0.98978203,20971.0,20970.0,0.01637708]
[1674070426225,0.98978203,20971.0,20970.0,0.02037708]
[1674070426480,0.98978203,20971.0,20970.0,0.01637708]
[1674070426738,0.52093403,20971.0,20970.0,0.02037708]
[1674070427633,1.46663003,20971.0,20970.0,0.01637708]
[1674070427831,1.47463003,20971.0,20970.0,0.02037708]
[1674070428350,1.47463003,20971.0,20970.0,0.01637708]
[1674070428611,0.306241,20971.0,20970.0,0.01637708]
[1674070428866,0.306241,20971.0,20970.0,0.02337708]
[1674070428867,0.314241,20971.0,20970.0,0.02337708]
[1674070429124,0.306241,20971.0,20970.0,0.01637708]
[1674070429376,0.314241,20971.0,20970.0,0.02337708]
[1674070429649,0.476837,20972.0,20970.0,0.01637708]
[1674070429904,0.68711771,20973.0,20970.0,0.02337708]
[1674070429905,0.327881,20971.0,20970.0,0.02337708]
[1674070431204,0.319881,20971.0,20970.0,0.01637708]
[1674070431484,0.319881,20971.0,20970.0,0.01737708]
[1674070431715,0.319881,20971.0,20970.0,0.01629202]
[1674070431988,0.320881,20971.0,20970.0,0.08929202]
[1674070432272,1.03823049,20971.0,20970.0,0.01629202]
[1674070432521,1.03823049,20971.0,20970.0,0.01729202]
[1674070432772,1.51507849,20971.0,20970.0,0.01729202]
[1674070433037,1.99328018,20971.0,20970.0,0.08929202]
[1674070433557,0.320881,20971.0,20970.0,0.08929202]
[1674070433811,0.320881,20971.0,20970.0,0.28361299]
[1674070434101,0.47685831,20973.0,20970.0,0.01629202]
[1674070434102,3.631e-05,20973.0,20970.0,0.01629202]
[1674070434320,0.008,20971.0,20970.0,0.69448399]
[1674070434575,3.631e-05,20973.0,20970.0,0.79316302]
[1674070434830,3.631e-05,20973.0,20970.0,0.08929202]
[1674070434831,0.001,20971.0,20970.0,0.08929202]
[1674070435089,0.54165924,20972.0,20970.0,0.01629202]
[1674070435345,0.54165924,20972.0,20970.0,0.10129202]
[1674070435611,0.53910924,20972.0,20970.0,0.10129202]
[1674070435832,0.20531724,20972.0,20970.0,0.10129202]
[1674070436352,0.322807,20971.0,20970.0,0.10129202]
[1674070436611,0.20531724,20972.0,20970.0,0.10129202]
[1674070437141,0.326616,20971.0,20970.0,0.10129202]
[1674070437401,0.326616,20971.0,20970.0,0.01629202]
[1674070437649,0.326616,20971.0,20970.0,0.08929202]
[1674070438150,0.68315324,20972.0,20970.0,0.08929202]
[1674070438151,0.20531724,20972.0,20970.0,0.01629202]
[1674070438661,0.335195,20971.0,20970.0,0.08929202]
[1674070439676,0.334195,20971.0,20970.0,0.01629202]
[1674070439927,0.20631724,20972.0,20970.0,0.08929202]
[1674070440183,0.20531724,20972.0,20970.0,0.01629202]
[1674070440439,0.341585,20971.0,20970.0,0.08429202]
[1674070440695,0.20531724,20972.0,20970.0,0.01629202]
[1674070440912,0.20531724,20972.0,20970.0,0.10929202]
[1674070441205,3.631e-05,20973.0,20970.0,0.97003302]
[1674070441470,3.631e-05,20973.0,20971.0,0.3]
[1674070441985,3.631e-05,20973.0,20971.0,1.481077]
[1674070442780,3.631e-05,20973.0,20972.0,0.15]
[1674070443038,3.631e-05,20973.0,20972.0,1.103652]
[1674070443282,3.631e-05,20973.0,20972.0,0.953652]
[1674070443550,3.631e-05,20973.0,20971.0,0.476831]
[1674070443822,3.631e-05,20973.0,20971.0,0.568831]
[1674070444063,3.631e-05,20973.0,20970.0,0.49314302]
[1674070444319,3.631e-05,20973.0,20972.0,0.092]
[1674070444320,0.12717631,20973.0,20972.0,0.092]
[1674070444592,0.12717631,20973.0,20970.0,0.01629202]
[1674070444593,1.753984,20973.0,20970.0,0.01629202]
[1674070444867,0.90570869,20972.0,20971.0,0.092]
[1674070445140,1.85936069,20972.0,20971.0,0.092]
[1674070445380,2.00936069,20972.0,20971.0,0.092]
[1674070445889,2.00936069,20972.0,20970.0,0.01629202]
[1674070445890,1.85936069,20972.0,20970.0,0.10829202]
[1674070446158,0.78940069,20971.0,20970.0,0.01629202]
[1674070446430,0.312199,20971.0,20970.0,0.01629202]
[1674070446679,0.33137,20971.0,20970.0,0.01629202]
[1674070446993,0.24276476,20973.0,20970.0,0.58384464]
[1674070446994,3.631e-05,20973.0,20970.0,0.58384464]
[1674070447193,3.631e-05,20973.0,20971.0,0.45]
[1674070447461,3.631e-05,20973.0,20972.0,0.476826]
[1674070447726,3.631e-05,20973.0,20972.0,0.776826]
[1674070447986,3.631e-05,20973.0,20972.0,1.403652]
[1674070448501,3.631e-05,20973.0,20972.0,1.253652]
[1674070449021,3.631e-05,20973.0,20972.0,1.346652]
[1674070449537,3.631e-05,20973.0,20972.0,0.569826]
[1674070449787,3.631e-05,20973.0,20972.0,0.093]
[1674070450555,0.31513931,20973.0,20972.0,0.092]
[1674070451610,0.31513931,20973.0,20970.0,0.49316302]
[1674070451858,0.12717631,20973.0,20972.0,0.093]
[1674070452103,0.44510731,20973.0,20972.0,0.093]
[1674070452615,0.44510731,20973.0,20970.0,0.01629202]
[1674070452923,0.347849,20972.0,20970.0,0.01629202]
[1674070453178,0.347849,20972.0,20970.0,0.10829202]
[1674070453694,0.323251,20971.0,20970.0,0.10829202]
[1674070454225,0.31336,20972.0,20970.0,0.10829202]
[1674070454469,0.31336,20972.0,20971.0,0.00010412]
[1674070454719,0.31336,20972.0,20971.0,0.13379461]
[1674070454983,3.631e-05,20973.0,20971.0,0.43379461]
[1674070455231,3.631e-05,20973.0,20971.0,0.58379461]
[1674070455736,0.317588,20972.0,20971.0,0.30809461]
[1674070456059,3.631e-05,20973.0,20971.0,1.35378861]
[1674070456291,3.631e-05,20973.0,20971.0,1.26178861]
[1674070456556,3.631e-05,20973.0,20971.0,1.7156803]
[1674070456815,3.631e-05,20973.0,20972.0,0.15]
[1674070457069,3.631e-05,20973.0,20972.0,1.403652]
[1674070457323,3.631e-05,20973.0,20972.0,1.253652]
[1674070457823,3.631e-05,20973.0,20972.0,0.776826]
[1674070458077,3.631e-05,20973.0,20972.0,0.476826]
[1674070458581,3.631e-05,20973.0,20972.0,0.568826]
[1674070459346,0.27546686,20975.0,20973.0,7.474e-05]
[1674070459907,0.330552,20974.0,20973.0,7.474e-05]
[1674070460369,0.317928,20974.0,20973.0,7.474e-05]
[1674070460648,0.27546686,20975.0,20973.0,0.09207474]
[1674070460863,0.27546686,20975.0,20973.0,0.40012253]
[1674070460864,0.01479709,20975.0,20973.0,0.40012253]
[1674070461673,0.01479709,20975.0,20973.0,0.30812253]
[1674070461971,0.01479709,20975.0,20973.0,0.87692453]
[1674070462210,0.01479709,20975.0,20973.0,0.78492453]
[1674070462491,0.01479709,20975.0,20973.0,1.35372753]
[1674070464290,0.01479709,20975.0,20973.0,1.05372753]
[1674070464843,0.32616509,20975.0,20973.0,0.09207474]
[1674070465099,0.329459,20974.0,20973.0,0.09207474]
[1674070465640,0.01479709,20975.0,20973.0,0.09207474]
[1674070466163,0.01479709,20975.0,20973.0,7.474e-05]
[1674070466503,0.01479709,20975.0,20973.0,0.56887274]
[1674070466926,0.338697,20974.0,20973.0,0.56887274]
[1674070467178,0.01479709,20975.0,20973.0,0.86887274]
[1674070467674,0.01479709,20975.0,20973.0,0.47687274]
[1674070467917,0.01479709,20975.0,20973.0,0.56887274]
[1674070468166,0.325405,20974.0,20973.0,0.56887274]
[1674070468431,0.01479709,20975.0,20973.0,0.56887274]
[1674070468993,0.319726,20974.0,20973.0,0.56887274]